fUSD/lending_fUSD_20260516
["ID","MTS","AMOUNT","RATE_DAILY","PERIOD"]
[422406038,1778935925000,-583.43739768,0.00040518,120]
[422406048,1778935925000,-345.34525886,0.00040518,120]
[422406057,1778935925000,-500.0,0.00040518,120]
[422406051,1778935925000,-303.13676877,0.00040518,120]
[422406054,1778935925000,-500.0,0.00040518,120]
[422406052,1778935925000,-500.0,0.00040518,120]
[422406058,1778935925000,-500.0,0.00040518,120]
[422406055,1778935925000,-500.0,0.00040518,120]
[422406053,1778935925000,-519.51851744,0.00040518,120]
[422406056,1778935925000,-347.61650521,0.00040518,120]
[422406059,1778935925000,-500.0,0.00040518,120]
[422406011,1778935925000,-252.52798618,0.00040518,120]
[422406049,1778935925000,-500.0,0.00040518,120]
[422406033,1778935925000,-500.0,0.00040518,120]
[422406050,1778935925000,-166.72717023,0.00040518,120]
[422406031,1778935925000,-171.79684928,0.00040518,120]
[422406008,1778935925000,-373.27175675,0.00040518,120]
[422406034,1778935925000,-500.0,0.00040518,120]
[422406006,1778935925000,-424.1400676,0.00040518,120]
[422406014,1778935925000,-307.22883259,0.00040518,120]
[422406010,1778935925000,-387.94556961,0.00040518,120]
[422406017,1778935925000,-500.0,0.00040518,120]
[422406018,1778935925000,-410.26121349,0.00040518,120]
[422406020,1778935925000,-500.0,0.00040518,120]
[422406021,1778935925000,-500.0,0.00040518,120]
[422406024,1778935925000,-500.0,0.00040518,120]
[422406019,1778935925000,-500.0,0.00040518,120]
[422406016,1778935925000,-500.0,0.00040518,120]
[422406022,1778935925000,-500.0,0.00040518,120]
[422406026,1778935925000,-500.0,0.00040518,120]
[422406025,1778935925000,-500.0,0.00040518,120]
[422406027,1778935925000,-500.0,0.00040518,120]
[422406028,1778935925000,-275.719528,0.00040518,120]
[422406029,1778935925000,-500.0,0.00040518,120]
[422406035,1778935925000,-500.0,0.00040518,120]
[422406030,1778935925000,-500.0,0.00040518,120]
[422406032,1778935925000,-500.0,0.00040518,120]
[422406023,1778935925000,-500.0,0.00040518,120]
[422406036,1778935925000,-500.0,0.00040518,120]
[422406091,1778935926000,-533.91087314,0.00040518,120]
[422406098,1778935926000,-208.24036516,0.00040518,120]
[422406102,1778935926000,-500.0,0.00040518,120]
[422406099,1778935926000,-316.39926434,0.00040518,120]
[422406101,1778935926000,-362.96128845,0.00040518,120]
[422406096,1778935926000,-217.35787025,0.00040518,120]
[422406087,1778935926000,-169.92231852,0.00040518,120]
[422406089,1778935926000,-515.97726256,0.00040518,120]
[422406092,1778935926000,-411.63846145,0.00040518,120]
[422406088,1778935926000,-500.0,0.00040518,120]
[422406100,1778935926000,-500.0,0.00040518,120]
[422406097,1778935926000,-500.0,0.00040518,120]
[422406107,1778935926000,-207.72935696,0.00040518,120]
[422406112,1778935926000,-500.0,0.00040518,120]
[422406104,1778935926000,-500.0,0.00040518,120]
[422406106,1778935926000,-332.42664635,0.00040518,120]
[422406105,1778935926000,-500.0,0.00040518,120]
[422406109,1778935926000,-524.94555419,0.00040518,120]
[422406120,1778935926000,-178.70590546,0.00040518,120]
[422406119,1778935926000,-230.43370786,0.00040518,120]
[422406115,1778935926000,-500.0,0.00040518,120]
[422406111,1778935926000,-500.0,0.00040518,120]
[422406110,1778935926000,-170.40736934,0.00040518,120]
[422406108,1778935926000,-512.65274953,0.00040518,120]
[422406113,1778935926000,-528.6722545,0.00040518,120]
[422406090,1778935926000,-500.0,0.00040518,120]
[422406114,1778935926000,-511.36778605,0.00040518,120]
[422406103,1778935926000,-562.77179718,0.00040518,120]
[422406084,1778935926000,-529.44144298,0.00040518,120]
[422406066,1778935926000,-500.0,0.00040518,120]
[422406085,1778935926000,-436.39141679,0.00040518,120]
[422406118,1778935926000,-456.87446132,0.00040518,120]
[422406060,1778935926000,-500.0,0.00040518,120]
[422406061,1778935926000,-500.0,0.00040518,120]
[422406064,1778935926000,-219.89138485,0.00040518,120]
[422406067,1778935926000,-500.0,0.00040518,120]
[422406063,1778935926000,-500.0,0.00040518,120]
[422406062,1778935926000,-268.93015572,0.00040518,120]
[422406069,1778935926000,-500.0,0.00040518,120]
[422406065,1778935926000,-531.37862894,0.00040518,120]
[422406068,1778935926000,-500.0,0.00040518,120]
[422406073,1778935926000,-400.82691522,0.00040518,120]
[422406072,1778935926000,-162.5607014,0.00040518,120]
[422406075,1778935926000,-279.29345113,0.00040518,120]
[422406070,1778935926000,-500.0,0.00040518,120]
[422406074,1778935926000,-520.6236161,0.00040518,120]
[422406071,1778935926000,-500.0,0.00040518,120]
[422406078,1778935926000,-340.05845046,0.00040518,120]
[422406076,1778935926000,-191.55566963,0.00040518,120]
[422406079,1778935926000,-162.98048529,0.00040518,120]
[422406081,1778935926000,-215.13019152,0.00040518,120]
[422406077,1778935926000,-417.72455242,0.00040518,120]
[422406080,1778935926000,-511.28287924,0.00040518,120]
[422406083,1778935926000,-528.97116715,0.00040518,120]
[422406095,1778935926000,-365.83746897,0.00040518,120]
[422406093,1778935926000,-320.08939561,0.00040518,120]
[422406094,1778935926000,-395.10553336,0.00040518,120]
[422406082,1778935926000,-369.4523761,0.00040518,120]
[422406086,1778935926000,-204.25372956,0.00040518,120]
[422406116,1778935926000,-470.19185425,0.00040518,120]
[422406151,1778935926000,-518.75234376,0.00040518,120]
[422406121,1778935926000,-525.38327125,0.00040518,120]
[422406156,1778935926000,-519.84377268,0.00040518,120]
[422406154,1778935926000,-500.00662874,0.00040518,120]
[422406157,1778935926000,-298.02359426,0.00040518,120]
[422406155,1778935926000,-500.0,0.00040518,120]
[422406159,1778935926000,-521.81968007,0.00040518,120]
[422406169,1778935926000,-500.0,0.00040518,120]
[422406170,1778935926000,-500.0,0.00040518,120]
[422406158,1778935926000,-359.32098777,0.00040518,120]
[422406166,1778935926000,-500.0,0.00040518,120]
[422406162,1778935926000,-500.0,0.00040518,120]
[422406165,1778935926000,-522.98069206,0.00040518,120]
[422406160,1778935926000,-500.0,0.00040518,120]
[422406161,1778935926000,-544.02090468,0.00040518,120]
[422406153,1778935926000,-183.45341823,0.00040518,120]
[422406167,1778935926000,-500.0,0.00040518,120]
[422406164,1778935926000,-213.22790375,0.00040518,120]
[422406163,1778935926000,-500.0,0.00040518,120]
[422406172,1778935926000,-500.0,0.00040518,120]
[422406173,1778935926000,-200.62655509,0.00040518,120]
[422406171,1778935926000,-516.82024038,0.00040518,120]
[422406174,1778935926000,-500.0,0.00040518,120]
[422406175,1778935926000,-500.0,0.00040518,120]
[422406178,1778935926000,-500.0,0.00040518,120]
[422406177,1778935926000,-504.99,0.00040518,120]
[422406181,1778935926000,-500.0,0.00040518,120]
[422406180,1778935926000,-504.99,0.00040518,120]
[422406117,1778935926000,-519.01436501,0.00040518,120]
[422406176,1778935926000,-500.0,0.00040518,120]
[422406168,1778935926000,-500.0,0.00040518,120]
[422406152,1778935926000,-291.67916827,0.00040518,120]
[422406179,1778935926000,-500.0,0.00040518,120]
[422406130,1778935926000,-534.03942156,0.00040518,120]
[422406124,1778935926000,-525.58967016,0.00040518,120]
[422406131,1778935926000,-274.7236201,0.00040518,120]
[422406132,1778935926000,-239.79635,0.00040518,120]
[422406128,1778935926000,-241.67075121,0.00040518,120]
[422406133,1778935926000,-500.0,0.00040518,120]
[422406122,1778935926000,-548.47542369,0.00040518,120]
[422406127,1778935926000,-500.0,0.00040518,120]
[422406150,1778935926000,-210.55264291,0.00040518,120]
[422406123,1778935926000,-193.05819419,0.00040518,120]
[422406125,1778935926000,-527.72954863,0.00040518,120]
[422406129,1778935926000,-455.5321398,0.00040518,120]
[422406145,1778935926000,-500.0,0.00040518,120]
[422406136,1778935926000,-500.0,0.00040518,120]
[422406126,1778935926000,-225.0689275,0.00040518,120]
[422406146,1778935926000,-500.0,0.00040518,120]
[422406135,1778935926000,-506.76371342,0.00040518,120]
[422406149,1778935926000,-205.07141064,0.00040518,120]
[422406148,1778935926000,-357.23480615,0.00040518,120]
[422406147,1778935926000,-500.0,0.00040518,120]
[422406142,1778935926000,-500.0,0.00040518,120]
[422406141,1778935926000,-220.81397988,0.00040518,120]
[422406143,1778935926000,-500.0,0.00040518,120]
[422406140,1778935926000,-530.90541118,0.00040518,120]
[422406137,1778935926000,-500.0,0.00040518,120]
[422406144,1778935926000,-500.0,0.00040518,120]
[422406139,1778935926000,-538.15806703,0.00040518,120]
[422406134,1778935926000,-500.0,0.00040518,120]
[422406138,1778935926000,-500.0,0.00040518,120]
[422406222,1778935927000,-474.72107101,0.00040518,120]
[422406220,1778935927000,-500.0,0.00040518,120]
[422406224,1778935927000,-563.73414466,0.00040518,120]
[422406223,1778935927000,-219.12823072,0.00040518,120]
[422406221,1778935927000,-335.00764155,0.00040518,120]
[422406209,1778935927000,-504.99,0.00040518,120]
[422406213,1778935927000,-505.04336232,0.00040518,120]
[422406211,1778935927000,-504.99,0.00040518,120]
[422406212,1778935927000,-500.0,0.00040518,120]
[422406216,1778935927000,-500.0,0.00040518,120]
[422406208,1778935927000,-504.99,0.00040518,120]
[422406219,1778935927000,-329.94628528,0.00040518,120]
[422406227,1778935927000,-189.96367559,0.00040518,120]
[422406238,1778935927000,-510.69227976,0.00040518,120]
[422406228,1778935927000,-316.3665681,0.00040518,120]
[422406225,1778935927000,-500.0,0.00040518,120]
[422406229,1778935927000,-222.26443154,0.00040518,120]
[422406231,1778935927000,-523.57685434,0.00040518,120]
[422406241,1778935927000,-500.0,0.00040518,120]
[422406232,1778935927000,-500.0,0.00040518,120]
[422406234,1778935927000,-500.0,0.00040518,120]
[422406230,1778935927000,-281.49684321,0.00040518,120]
[422406235,1778935927000,-500.0,0.00040518,120]
[422406236,1778935927000,-500.0,0.00040518,120]
[422406233,1778935927000,-558.65547713,0.00040518,120]
[422406239,1778935927000,-512.94719947,0.00040518,120]
[422406210,1778935927000,-500.0,0.00040518,120]
[422406226,1778935927000,-207.76725106,0.00040518,120]
[422406206,1778935927000,-504.99,0.00040518,120]
[422406196,1778935927000,-504.99,0.00040518,120]
[422406215,1778935927000,-335.05963284,0.00040518,120]
[422406183,1778935927000,-452.86301393,0.00040518,120]
[422406182,1778935927000,-500.0,0.00040518,120]
[422406191,1778935927000,-504.99,0.00040518,120]
[422406186,1778935927000,-154.35986938,0.00040518,120]
[422406184,1778935927000,-504.99,0.00040518,120]
[422406185,1778935927000,-500.0,0.00040518,120]
[422406192,1778935927000,-504.99,0.00040518,120]
[422406187,1778935927000,-504.99,0.00040518,120]
[422406188,1778935927000,-500.0,0.00040518,120]
[422406193,1778935927000,-553.38314886,0.00040518,120]
[422406189,1778935927000,-504.99,0.00040518,120]
[422406190,1778935927000,-500.0,0.00040518,120]
[422406214,1778935927000,-427.30152158,0.00040518,120]
[422406195,1778935927000,-504.99,0.00040518,120]
[422406197,1778935927000,-504.99,0.00040518,120]
[422406199,1778935927000,-504.99,0.00040518,120]
[422406198,1778935927000,-504.99,0.00040518,120]
[422406205,1778935927000,-504.99,0.00040518,120]
[422406202,1778935927000,-504.99,0.00040518,120]
[422406200,1778935927000,-504.99,0.00040518,120]
[422406201,1778935927000,-535.87831399,0.00040518,120]
[422406203,1778935927000,-504.99,0.00040518,120]
[422406204,1778935927000,-504.99,0.00040518,120]
[422406207,1778935927000,-504.99,0.00040518,120]
[422406218,1778935927000,-326.10352923,0.00040518,120]
[422406217,1778935927000,-271.1059415,0.00040518,120]
[422406194,1778935927000,-504.99,0.00040518,120]
[422406240,1778935927000,-536.37915948,0.00040518,120]
[422406272,1778935927000,-500.0,0.00040518,120]
[422406242,1778935927000,-570.36504045,0.00040518,120]
[422406277,1778935927000,-226.96085414,0.00040518,120]
[422406273,1778935927000,-547.78196513,0.00040518,120]
[422406275,1778935927000,-500.0,0.00040518,120]
[422406274,1778935927000,-500.0,0.00040518,120]
[422406289,1778935927000,-483.03531309,0.00040518,120]
[422406278,1778935927000,-500.0,0.00040518,120]
[422406279,1778935927000,-500.0,0.00040518,120]
[422406290,1778935927000,-500.0,0.00040518,120]
[422406280,1778935927000,-500.0,0.00040518,120]
[422406282,1778935927000,-500.0,0.00040518,120]
[422406283,1778935927000,-500.0,0.00040518,120]
[422406284,1778935927000,-500.0,0.00040518,120]
[422406285,1778935927000,-500.0,0.00040518,120]
[422406287,1778935927000,-500.0,0.00040518,120]
[422406288,1778935927000,-500.0,0.00040518,120]
[422406286,1778935927000,-500.0,0.00040518,120]
[422406291,1778935927000,-500.0,0.00040518,120]
[422406293,1778935927000,-500.0,0.00040518,120]
[422406295,1778935927000,-500.0,0.00040518,120]
[422406296,1778935927000,-500.0,0.00040518,120]
[422406298,1778935927000,-500.0,0.00040518,120]
[422406297,1778935927000,-500.0,0.00040518,120]
[422406294,1778935927000,-500.0,0.00040518,120]
[422406300,1778935927000,-500.0,0.00040518,120]
[422406292,1778935927000,-500.0,0.00040518,120]
[422406299,1778935927000,-500.0,0.00040518,120]
[422406237,1778935927000,-271.63501044,0.00040518,120]
[422406276,1778935927000,-500.0,0.00040518,120]
[422406271,1778935927000,-500.0,0.00040518,120]
[422406281,1778935927000,-500.0,0.00040518,120]
[422406266,1778935927000,-500.0,0.00040518,120]
[422406301,1778935927000,-500.0,0.00040518,120]
[422406248,1778935927000,-500.0,0.00040518,120]
[422406243,1778935927000,-500.0,0.00040518,120]
[422406250,1778935927000,-500.0,0.00040518,120]
[422406252,1778935927000,-572.24172108,0.00040518,120]
[422406244,1778935927000,-263.24454951,0.00040518,120]
[422406249,1778935927000,-542.25867098,0.00040518,120]
[422406246,1778935927000,-500.0,0.00040518,120]
[422406247,1778935927000,-500.0,0.00040518,120]
[422406245,1778935927000,-512.13880721,0.00040518,120]
[422406264,1778935927000,-500.0,0.00040518,120]
[422406254,1778935927000,-500.0,0.00040518,120]
[422406255,1778935927000,-500.0,0.00040518,120]
[422406261,1778935927000,-500.0,0.00040518,120]
[422406251,1778935927000,-500.0,0.00040518,120]
[422406260,1778935927000,-532.9914059,0.00040518,120]
[422406253,1778935927000,-258.90027216,0.00040518,120]
[422406267,1778935927000,-500.0,0.00040518,120]
[422406265,1778935927000,-500.0,0.00040518,120]
[422406268,1778935927000,-500.0,0.00040518,120]
[422406270,1778935927000,-566.99479622,0.00040518,120]
[422406263,1778935927000,-500.0,0.00040518,120]
[422406269,1778935927000,-500.0,0.00040518,120]
[422406259,1778935927000,-156.15764722,0.00040518,120]
[422406256,1778935927000,-366.64906192,0.00040518,120]
[422406257,1778935927000,-341.21402188,0.00040518,120]
[422406258,1778935927000,-500.0,0.00040518,120]
[422406262,1778935927000,-500.0,0.00040518,120]
[422406341,1778935928000,-500.0,0.00040518,120]
[422406344,1778935928000,-551.48,0.00040518,120]
[422406343,1778935928000,-500.0,0.00040518,120]
[422406329,1778935928000,-551.48,0.00040518,120]
[422406340,1778935928000,-551.48,0.00040518,120]
[422406337,1778935928000,-500.0,0.00040518,120]
[422406338,1778935928000,-551.48,0.00040518,120]
[422406334,1778935928000,-500.0,0.00040518,120]
[422406336,1778935928000,-551.48,0.00040518,120]
[422406335,1778935928000,-551.48,0.00040518,120]
[422406345,1778935928000,-540.06605577,0.00040518,120]
[422406342,1778935928000,-551.48,0.00040518,120]
[422406349,1778935928000,-551.48,0.00040518,120]
[422406355,1778935928000,-551.48,0.00040518,120]
[422406351,1778935928000,-551.48,0.00040518,120]
[422406348,1778935928000,-551.48,0.00040518,120]
[422406350,1778935928000,-551.48,0.00040518,120]
[422406347,1778935928000,-198.058,0.00040518,120]
[422406353,1778935928000,-551.48,0.00040518,120]
[422406352,1778935928000,-551.48,0.00040518,120]
[422406354,1778935928000,-551.48,0.00040518,120]
[422406356,1778935928000,-551.48,0.00040518,120]
[422406359,1778935928000,-551.48,0.00040518,120]
[422406362,1778935928000,-500.0,0.00040518,120]
[422406358,1778935928000,-551.48,0.00040518,120]
[422406332,1778935928000,-551.48,0.00040518,120]
[422406346,1778935928000,-551.48,0.00040518,120]
[422406331,1778935928000,-551.48,0.00040518,120]
[422406303,1778935928000,-500.0,0.00040518,120]
[422406339,1778935928000,-500.0,0.00040518,120]
[422406302,1778935928000,-500.0,0.00040518,120]
[422406305,1778935928000,-500.0,0.00040518,120]
[422406315,1778935928000,-500.0,0.00040518,120]
[422406304,1778935928000,-500.0,0.00040518,120]
[422406307,1778935928000,-500.0,0.00040518,120]
[422406312,1778935928000,-500.0,0.00040518,120]
[422406306,1778935928000,-500.0,0.00040518,120]
[422406309,1778935928000,-552.70364552,0.00040518,120]
[422406308,1778935928000,-500.0,0.00040518,120]
[422406310,1778935928000,-500.0,0.00040518,120]
[422406313,1778935928000,-500.0,0.00040518,120]
[422406314,1778935928000,-500.0,0.00040518,120]
[422406311,1778935928000,-500.0,0.00040518,120]
[422406316,1778935928000,-440.08734484,0.00040518,120]
[422406318,1778935928000,-500.0,0.00040518,120]
[422406319,1778935928000,-500.0,0.00040518,120]
[422406320,1778935928000,-507.82614896,0.00040518,120]
[422406321,1778935928000,-541.56596347,0.00040518,120]
[422406327,1778935928000,-522.73428059,0.00040518,120]
[422406326,1778935928000,-500.0,0.00040518,120]
[422406324,1778935928000,-500.0,0.00040518,120]
[422406322,1778935928000,-500.0,0.00040518,120]
[422406325,1778935928000,-265.88027311,0.00040518,120]
[422406323,1778935928000,-500.0,0.00040518,120]
[422406317,1778935928000,-500.0,0.00040518,120]
[422406328,1778935928000,-513.14085265,0.00040518,120]
[422406330,1778935928000,-551.48,0.00040518,120]
[422406333,1778935928000,-551.48,0.00040518,120]
[422406360,1778935928000,-551.51,0.00040518,120]
[422406357,1778935928000,-525.76047011,0.00040518,120]
[422406363,1778935928000,-445.23624516,0.00040518,120]
[422406396,1778935928000,-287.59234119,0.00040518,120]
[422406394,1778935928000,-241.80521537,0.00040518,120]
[422406393,1778935928000,-500.0,0.00040518,120]
[422406391,1778935928000,-525.0386184,0.00040518,120]
[422406398,1778935928000,-282.96433974,0.00040518,120]
[422406392,1778935928000,-500.0,0.00040518,120]
[422406397,1778935928000,-500.0,0.00040518,120]
[422406403,1778935928000,-486.12132541,0.00040518,120]
[422406402,1778935928000,-500.0,0.00040518,120]
[422406404,1778935928000,-311.55694496,0.00040518,120]
[422406408,1778935928000,-500.0,0.00040518,120]
[422406409,1778935928000,-500.0,0.00040518,120]
[422406410,1778935928000,-500.0,0.00040518,120]
[422406405,1778935928000,-500.0,0.00040518,120]
[422406412,1778935928000,-320.26552534,0.00040518,120]
[422406407,1778935928000,-500.0,0.00040518,120]
[422406411,1778935928000,-566.84434934,0.00040518,120]
[422406413,1778935928000,-500.0,0.00040518,120]
[422406414,1778935928000,-561.97006413,0.00040518,120]
[422406415,1778935928000,-500.0,0.00040518,120]
[422406419,1778935928000,-551.42984488,0.00040518,120]
[422406418,1778935928000,-500.0,0.00040518,120]
[422406416,1778935928000,-500.0,0.00040518,120]
[422406417,1778935928000,-376.67302382,0.00040518,120]
[422406420,1778935928000,-157.56606784,0.00040518,120]
[422406421,1778935928000,-500.0,0.00040518,120]
[422406361,1778935928000,-511.18801671,0.00040518,120]
[422406395,1778935928000,-353.5824883,0.00040518,120]
[422406399,1778935928000,-162.47386783,0.00040518,120]
[422406406,1778935928000,-500.0,0.00040518,120]
[422406388,1778935928000,-500.0,0.00040518,120]
[422406400,1778935928000,-356.43503447,0.00040518,120]
[422406373,1778935928000,-344.90906844,0.00040518,120]
[422406364,1778935928000,-544.90962339,0.00040518,120]
[422406374,1778935928000,-545.22431103,0.00040518,120]
[422406368,1778935928000,-500.0,0.00040518,120]
[422406367,1778935928000,-565.26461977,0.00040518,120]
[422406369,1778935928000,-500.0,0.00040518,120]
[422406366,1778935928000,-293.12669932,0.00040518,120]
[422406370,1778935928000,-282.53567511,0.00040518,120]
[422406372,1778935928000,-500.0,0.00040518,120]
[422406371,1778935928000,-500.0,0.00040518,120]
[422406376,1778935928000,-500.0,0.00040518,120]
[422406386,1778935928000,-500.0,0.00040518,120]
[422406375,1778935928000,-265.27052452,0.00040518,120]
[422406365,1778935928000,-500.0,0.00040518,120]
[422406390,1778935928000,-551.68103988,0.00040518,120]
[422406380,1778935928000,-260.27194212,0.00040518,120]
[422406401,1778935928000,-371.9063169,0.00040518,120]
[422406389,1778935928000,-247.24549575,0.00040518,120]
[422406382,1778935928000,-540.71380242,0.00040518,120]
[422406381,1778935928000,-262.10088304,0.00040518,120]
[422406383,1778935928000,-346.17166509,0.00040518,120]
[422406385,1778935928000,-500.0,0.00040518,120]
[422406379,1778935928000,-331.1,0.00040518,120]
[422406377,1778935928000,-500.0,0.00040518,120]
[422406378,1778935928000,-500.0,0.00040518,120]
[422406387,1778935928000,-500.0,0.00040518,120]
[422406384,1778935928000,-531.25983143,0.00040518,120]
[422406463,1778935929000,-500.0,0.00040518,120]
[422406473,1778935929000,-500.0,0.00040518,120]
[422406467,1778935929000,-235.02681001,0.00040518,120]
[422406465,1778935929000,-500.0,0.00040518,120]
[422406457,1778935929000,-500.0,0.00040518,120]
[422406455,1778935929000,-500.0,0.00040518,120]
[422406484,1778935929000,-500.0,0.00040518,120]
[422406456,1778935929000,-500.0,0.00040518,120]
[422406453,1778935929000,-500.0,0.00040518,120]
[422406462,1778935929000,-418.07606368,0.00040518,120]
[422406466,1778935929000,-500.0,0.00040518,120]
[422406452,1778935929000,-500.0,0.00040518,120]
[422406458,1778935929000,-500.0,0.00040518,120]
[422406468,1778935929000,-582.32271843,0.00040518,120]
[422406474,1778935929000,-500.0,0.00040518,120]
[422406469,1778935929000,-500.0,0.00040518,120]
[422406424,1778935929000,-516.46522265,0.00040518,120]
[422406471,1778935929000,-500.0,0.00040518,120]
[422406464,1778935929000,-493.07085156,0.00040518,120]
[422406475,1778935929000,-500.0,0.00040518,120]
[422406489,1778935929000,-500.0,0.00040518,120]
[422406488,1778935929000,-500.0,0.00040518,120]
[422406477,1778935929000,-500.0,0.00040518,120]
[422406487,1778935929000,-196.50422685,0.00040518,120]
[422406479,1778935929000,-500.0,0.00040518,120]
[422406478,1778935929000,-500.0,0.00040518,120]
[422406476,1778935929000,-500.0,0.00040518,120]
[422406483,1778935929000,-500.0,0.00040518,120]
[422406472,1778935929000,-500.0,0.00040518,120]
[422406454,1778935929000,-258.25361573,0.00040518,120]
[422406422,1778935929000,-500.0,0.00040518,120]
[422406450,1778935929000,-500.0,0.00040518,120]
[422406423,1778935929000,-500.0,0.00040518,120]
[422406426,1778935929000,-500.0,0.00040518,120]
[422406436,1778935929000,-156.13684089,0.00040518,120]
[422406427,1778935929000,-500.0,0.00040518,120]
[422406429,1778935929000,-173.87307324,0.00040518,120]
[422406428,1778935929000,-538.98616061,0.00040518,120]
[422406425,1778935929000,-500.0,0.00040518,120]
[422406430,1778935929000,-534.91595542,0.00040518,120]
[422406433,1778935929000,-500.0,0.00040518,120]
[422406431,1778935929000,-164.77357954,0.00040518,120]
[422406434,1778935929000,-500.0,0.00040518,120]
[422406435,1778935929000,-500.0,0.00040518,120]
[422406432,1778935929000,-500.0,0.00040518,120]
[422406459,1778935929000,-500.0,0.00040518,120]
[422406437,1778935929000,-500.0,0.00040518,120]
[422406438,1778935929000,-500.0,0.00040518,120]
[422406439,1778935929000,-536.1492182,0.00040518,120]
[422406449,1778935929000,-500.0,0.00040518,120]
[422406441,1778935929000,-500.0,0.00040518,120]
[422406440,1778935929000,-262.68394628,0.00040518,120]
[422406442,1778935929000,-185.37733518,0.00040518,120]
[422406447,1778935929000,-500.0,0.00040518,120]
[422406446,1778935929000,-155.38338173,0.00040518,120]
[422406445,1778935929000,-500.0,0.00040518,120]
[422406443,1778935929000,-500.0,0.00040518,120]
[422406444,1778935929000,-500.0,0.00040518,120]
[422406461,1778935929000,-441.14678396,0.00040518,120]
[422406451,1778935929000,-500.0,0.00040518,120]
[422406448,1778935929000,-500.0,0.00040518,120]
[422406482,1778935929000,-500.0,0.00040518,120]
[422406460,1778935929000,-500.0,0.00040518,120]
[422406481,1778935929000,-500.0,0.00040518,120]
[422406519,1778935929000,-500.0,0.00040518,120]
[422406520,1778935929000,-500.0,0.00040518,120]
[422406523,1778935929000,-569.71824547,0.00040518,120]
[422406525,1778935929000,-500.0,0.00040518,120]
[422406526,1778935929000,-440.08588952,0.00040518,120]
[422406524,1778935929000,-377.55839589,0.00040518,120]
[422406528,1778935929000,-500.0,0.00040518,120]
[422406527,1778935929000,-500.0,0.00040518,120]
[422406529,1778935929000,-419.51075063,0.00040518,120]
[422406530,1778935929000,-217.27773736,0.00040518,120]
[422406532,1778935929000,-285.14959532,0.00040518,120]
[422406533,1778935929000,-522.19023202,0.00040518,120]
[422406531,1778935929000,-500.0,0.00040518,120]
[422406539,1778935929000,-500.0,0.00040518,120]
[422406540,1778935929000,-500.0,0.00040518,120]
[422406538,1778935929000,-538.36820474,0.00040518,120]
[422406536,1778935929000,-238.75190827,0.00040518,120]
[422406535,1778935929000,-500.0,0.00040518,120]
[422406534,1778935929000,-534.17204259,0.00040518,120]
[422406537,1778935929000,-500.0,0.00040518,120]
[422406542,1778935929000,-500.0,0.00040518,120]
[422406541,1778935929000,-500.0,0.00040518,120]
[422406543,1778935929000,-500.0,0.00040518,120]
[422406547,1778935929000,-500.0,0.00040518,120]
[422406548,1778935929000,-500.0,0.00040518,120]
[422406546,1778935929000,-443.59424585,0.00040518,120]
[422406545,1778935929000,-500.0,0.00040518,120]
[422406544,1778935929000,-500.0,0.00040518,120]
[422406485,1778935929000,-500.0,0.00040518,120]
[422406522,1778935929000,-500.0,0.00040518,120]
[422406521,1778935929000,-500.0,0.00040518,120]
[422406470,1778935929000,-255.59757673,0.00040518,120]
[422406517,1778935929000,-500.0,0.00040518,120]
[422406518,1778935929000,-533.04115429,0.00040518,120]
[422406480,1778935929000,-500.0,0.00040518,120]